Cogmind - Beta 9.4 @@@ ROGUE MODE // 2020.01.22 @ 14:41:44 Player: Pimski Result: Destroyed by 99-TNT via exploding Plasma Injector Performance ------------- Evolutions (1) 500 Regions Visited (6) 1200 Robots Destroyed (68) 340 Value Destroyed (1412) 1412 Prototype IDs (31) 620 Alien Tech Used (0) 0 Bonus (-288) -288 TOTAL SCORE: 3784 Bonus ------- Aligned with FarCom 300 Friendly Fire -588 Cogmind --------- Core Integrity 0/400 Matter 257/300 Energy 100/100 System Corruption 0% Temperature Cool (12) Movement Walking (120) Location -8/Mines Parts ------- > --- POWER (1) -------- (None) > --- PROPULSION (2) --- Advanced Myomer Leg Advanced Myomer Leg > --- UTILITY (4) ------ Experimental Heat Sink Medium Storage Unit Large Storage Unit Large Storage Unit > --- WEAPON (2) ------- Heavy Assault Rifle > --- INVENTORY (20) --- Improved Flight Unit Improved Flight Unit Improved Flight Unit Improved Flight Unit Improved Flight Unit Improved Flight Unit Medium Storage Unit Gravity Neutralizing Apparatus Advanced Sensor Array Advanced Sensor Array Advanced Weapon Cycler Hacking Suite Hacking Suite Hacking Suite Hacking Suite AS-neutralizer No. 17b Shotgun 8R-AWN's Boregun Rocket Launcher Axe Peak State ------------ > --- POWER ------------ (None) > --- PROPULSION ------- Advanced Myomer Leg Advanced Myomer Leg > --- UTILITY ---------- Experimental Heat Sink Medium Storage Unit Large Storage Unit Large Storage Unit > --- WEAPON ----------- Heavy Assault Rifle Axe > --- INVENTORY -------- Improved Flight Unit Improved Flight Unit Improved Flight Unit Improved Flight Unit Improved Flight Unit Improved Flight Unit Medium Storage Unit Gravity Neutralizing Apparatus Advanced Sensor Array Advanced Weapon Cycler Hacking Suite Hacking Suite Hacking Suite Hacking Suite AS-neutralizer No. 17b Heavy Assault Rifle Shotgun 8R-AWN's Boregun Rocket Launcher [Rating: 37] Favorites ----------- Power Heavy Ion Engine Engine Heavy Ion Engine Power Core Light Nuclear Core Propulsion Light Treads Treads Light Treads Leg Advanced Myomer Leg Wheel Compact Wheel Flight Unit Improved Flight Unit Utility Large Storage Unit Device Experimental Heat Sink Storage Large Storage Unit Processor Targeting Computer Protection Reflective Plating Weapon Light Assault Rifle Energy Gun Small Laser Ballistic Gun Light Assault Rifle Launcher Rocket Launcher Slashing Weapon Axe Build | -11 -10 -10 -9 -9 -9 -8 ------- Run | Scr Mat Min Mat Min Exi Min Slots Evolved 2 | . . . 2 . . . Power . | . . . . . . . Propulsion . | . . . . . . . Utility 2 | . . . 2 . . . Weapon . | . . . . . . . Parts Attached 56 | . 5 6 27 1 17 . Power 3 | . . 2 1 . . . Engine 1 | . . . 1 . . . Core 2 | . . 2 . . . . Reactor . | . . . . . . . Propulsion 14 | . 2 1 6 . 5 . Treads 10 | . 2 . 5 . 3 . Leg 2 | . . . . . 2 . Wheel 1 | . . 1 . . . . Hover . | . . . . . . . Flight 1 | . . . 1 . . . Utility 17 | . 1 1 7 1 7 . Device 4 | . . . . . 4 . Storage 7 | . 1 . 3 1 2 . Processor 2 | . . 1 1 . . . Hackware . | . . . . . . . Protection 4 | . . . 3 . 1 . Artifact . | . . . . . . . Weapon 22 | . 2 2 13 . 5 . Energy Gun 3 | . 1 . 2 . . . Energy Cannon . | . . . . . . . Ballistic Gun 13 | . 1 2 7 . 3 . Ballistic Cannon . | . . . . . . . Launcher 4 | . . . 3 . 1 . Special Weapon . | . . . . . . . Impact Weapon . | . . . . . . . Slashing Weapon 2 | . . . 1 . 1 . Piercing Weapon . | . . . . . . . Special Melee Weapon . | . . . . . . . Unidentified Prototypes 6 | . . . 2 . 4 . Parts Lost 17 | . . 4 4 . 8 1 Power 2 | . . 1 . . 1 . Propulsion 8 | . . 1 2 . 5 . Utility 1 | . . . . . 1 . Weapon 6 | . . 2 2 . 1 1 Highest Loss Streak 4 | . . 2 2 . 4 1 Average Slot Usage (%) 94 | . 89 98 99 100 85 88 Engine 8 | . 14 6 5 11 9 . Core 3 | . . 6 5 . . . Treads 21 | . 27 25 18 22 18 . Leg 1 | . . . . . 2 22 Wheel 1 | . . 1 3 . . . Storage 25 | . 18 20 24 41 28 33 Processor 2 | . . 7 3 . . . Protection 6 | . . . 15 2 4 . Ballistic Gun 22 | . 25 28 21 22 17 22 Naked Turns . | . . . . . . . Heaviest Build 62 | 10 18 18 58 62 62 46 Greatest Support 60 | 20 40 40 40 40 60 60 Greatest Overweight (x) 6 | . . . 2 1 6 . Average Overweight (x) . | . . . 1 1 . . Largest Inventory Capacity 24 | 6 10 10 20 24 24 20 Average Capacity 14 | 6 7 8 16 22 18 20 Most Carried 24 | 6 10 10 20 24 24 20 Average Carried 12 | 6 6 8 14 22 14 20 Final Capacity 24 | 6 10 8 20 24 20 20 Final Carried 24 | 6 10 8 20 24 20 20 Class Distribution -------------------- 57% | Mutant 32% | Hauler-Mutant 10% | Scavenger-Mutant Dominant Class ---------------- Mutant | -10/Materials Mutant | -10/Mines Hauler-Mutant | -9/Materials Hauler-Mutant | -9/Mines Mutant | -9/Exiles Hauler-Mutant | -8/Mines Resources | -11 -10 -10 -9 -9 -9 -8 ----------- Run | Scr Mat Min Mat Min Exi Min Matter Collected 1416 | 220 116 144 638 24 274 . Remotely . | . . . . . . . Salvage Created 2320 | 78 254 396 1300 17 122 153 Parts 122 | 2 18 16 76 . 4 6 Haulers Intercepted 6 | . 1 . 5 . . . Recyclers Shooed 11 | . 2 1 8 . . . Parts Field Recycled . | . . . . . . . Retrieved Matter . | . . . . . . . Parts Self-Destructed . | . . . . . . . Prevented . | . . . . . . . Kills | -11 -10 -10 -9 -9 -9 -8 ------- Run | Scr Mat Min Mat Min Exi Min Combat Hostiles Destroyed 40 | . 7 9 17 1 3 3 Melee 2 | . . . . . 2 . Guns 28 | . 7 9 8 1 . 3 AOE 10 | . . . 9 . 1 . Classes Destroyed 11 | 1 4 . 5 1 . . Worker 7 | . 1 1 5 . . . Builder 2 | . . . 2 . . . Hauler 6 | . 1 . 5 . . . Recycler 6 | 1 . . 5 . . . Operator 2 | . . . 2 . . . Watcher 1 | . . . 1 . . . Swarmer 6 | . 3 3 . . . . Grunt 26 | . 4 6 13 . . 3 Brawler 1 | . . . 1 . . . Sentry 3 | . . . 3 . . . Assembled 7 | . . . . 1 6 . Best Kill Streak 7 | 1 3 7 6 1 2 3 Combat Bots Only 4 | . 3 3 4 1 2 3 Max Kills in Single Turn 4 | 1 1 1 4 1 4 1 Gunslinging . | . . . . . . . Exploded 2 | . . . 2 . 1 . Melee 1 | . . . . . 1 . Uniques/NPCs Destroyed 1 | . . . . . 1 . 8R-AWN (-9/Exiles) Combat | -11 -10 -10 -9 -9 -9 -8 -------- Run | Scr Mat Min Mat Min Exi Min Damage Taken 2660 | . 306 426 597 39 969 323 Core 530 | . 39 48 85 . 267 91 Absorbed by Shields . | . . . . . . . Core Remaining (%) 82 | 100 . 65 . . . . Volleys Fired 174 | 5 27 26 102 2 4 8 Largest 2 | 2 2 2 2 2 1 2 Hottest 70 | 40 60 40 70 46 33 46 Shots Fired 334 | 10 54 51 195 4 4 16 Gun 323 | 10 54 51 188 4 . 16 Cannon . | . . . . . . . Launcher 11 | . . . 7 . 4 . Special . | . . . . . . . Kinetic 310 | 10 43 51 186 4 . 16 Thermal 13 | . 11 . 2 . . . Explosive 11 | . . . 7 . 4 . Electromagnetic . | . . . . . . . Robot Hit Streak 29 | 5 24 15 29 5 2 7 Robot Miss Streak 4 | 2 1 2 4 2 1 2 Penetration Max . | . . . . . . . Secondary Targets 3 | . . 1 1 . . 1 Max Gunslinging Chain 1 | . . 1 1 . . 1 Shots Hit Robots 295 | 7 41 40 150 2 43 12 Core Hits 132 | 2 17 21 65 2 18 7 Critical Hits 4 | . 1 . 1 . 2 . Critical Kills . | . . . . . . . Critical Parts Destroyed 3 | . 1 . 1 . 1 . Melee Attacks 44 | . . . 1 . 43 . Impact . | . . . . . . . Slashing 44 | . . . 1 . 43 . Piercing . | . . . . . . . Sneak Attacks . | . . . . . . . Combat Hostiles . | . . . . . . . Follow-up Attacks . | . . . . . . . Damage Inflicted 5580 | 62 561 392 2521 50 1775 219 Guns 2777 | 62 467 388 1601 40 . 219 Cannons . | . . . . . . . Explosions 1385 | . 94 . 915 . 376 . Melee 1399 | . . . . . 1399 . Ramming 19 | . . 4 5 10 . . Kinetic 2675 | 62 378 388 1588 40 . 219 Thermal 102 | . 89 . 13 . . . Explosive 1385 | . 94 . 915 . 376 . Electromagnetic . | . . . . . . . Impact . | . . . . . . . Slashing 1399 | . . . . . 1399 . Piercing . | . . . . . . . Highest Corruption . | . . . . . . . Average Corruption . | . . . . . . . Corruption Purged . | . . . . . . . Overload Shots . | . . . . . . . Overflow Damage 46 | . . . . . 46 . Projectiles . | . . . . . . . Explosions 34 | . . . . . 34 . Melee 12 | . . . . . 12 . Knockbacks 1 | . . . . 1 . . Impact 1 | . . . . 1 . . Kinetic . | . . . . . . . Secondary . | . . . . . . . Self-Inflicted Damage 211 | . 171 . 40 . . . Shots 4 | . 2 . 2 . . . Rammed 4 | . . 2 1 1 . . Targets Rammed 5 | . . 2 2 1 . . Kicked . | . . . . . . . Crushed 1 | . . . 1 . . . Highest Temperature 72 | . 48 8 72 . . 5 Average Temperature 12 | . 26 3 12 . . 5 Received Heat Transfer 609 | . 69 138 282 . . 120 Siege Activations . | . . . . . . . Robots Corrupted . | . . . . . . . Combat Hostiles . | . . . . . . . Parts Fried . | . . . . . . . Impact Corruptions . | . . . . . . . Robots Melted . | . . . . . . . Combat Hostiles . | . . . . . . . Parts Melted . | . . . . . . . Heat Transferred 237 | . 200 . 37 . . . Parts Sabotaged . | . . . . . . . Parts Stolen . | . . . . . . . Parts Stripped . | . . . . . . . Power Chain Reactions . | . . . . . . . Missiles Intercepted . | . . . . . . . Alert | -11 -10 -10 -9 -9 -9 -8 ------- Run | Scr Mat Min Mat Min Exi Min Peak Influence 329 | 5 320 145 329 12 . 70 Average Influence 110 | 2 172 58 167 1 . 23 Maximum Alert Level 1 | . 1 . 1 . . . Low Security (%) 73 | 100 52 100 50 100 . 100 Level 1 26 | . 47 . 49 . . . Level 2 . | . . . . . . . Level 3 . | . . . . . . . Level 4 . | . . . . . . . Level 5 . | . . . . . . . High Security . | . . . . . . . Max Security . | . . . . . . . Squads Dispatched 2 | . . . 2 . . . Investigation . | . . . . . . . Extermination . | . . . . . . . Reinforcement 2 | . . . 2 . . . Assault . | . . . . . . . Garrison . | . . . . . . . Intercept . | . . . . . . . Construction Impeded . | . . . . . . . Haulers Reinforced . | . . . . . . . Stealth | -11 -10 -10 -9 -9 -9 -8 --------- Run | Scr Mat Min Mat Min Exi Min Distress Signals 8 | . 3 . 5 . . . Communications Jammed . | . . . . . . . Distress Signals . | . . . . . . . Times Spotted 74 | . 14 11 39 2 4 4 Peak Tracking Total 7 | . 5 4 7 6 5 4 Tactical Retreats 3 | . . 1 1 1 . . Traps | -11 -10 -10 -9 -9 -9 -8 ------- Run | Scr Mat Min Mat Min Exi Min Traps Triggered 1 | . . 1 . . . . Indirectly . | . . . . . . . Trap Hack Attempts . | . . . . . . . Triggered . | . . . . . . . Disarmed . | . . . . . . . Reprogrammed . | . . . . . . . Reused 4 | . . . . . 4 . Traps Extracted . | . . . . . . . Installed 4 | . . . . . 4 . Triggered 2 | . . . . 2 . . Machines | -11 -10 -10 -9 -9 -9 -8 ---------- Run | Scr Mat Min Mat Min Exi Min Machines Disabled 8 | . 2 . 3 . 3 . Max in Single Turn 2 | . 2 . 1 . 1 . Machines Sabotaged . | . . . . . . . Garrisons Compromised . | . . . . . . . Overloaded Fab Kills . | . . . . . . . Fab Network Shutdowns . | . . . . . . . Hacking | -11 -10 -10 -9 -9 -9 -8 --------- Run | Scr Mat Min Mat Min Exi Min Machines Accessed 10 | . 4 1 3 . 2 . Terminals 6 | . 3 . 3 . . . Fabricators . | . . . . . . . Repair Stations . | . . . . . . . Recycling Units 1 | . 1 . . . . . Scanalyzers . | . . . . . . . Garrison Access . | . . . . . . . Total Hacks 23 | . 9 1 11 . 2 . Successful 12 | . 5 1 4 . 2 . Failed 11 | . 4 . 7 . . . Catastrophic . | . . . . . . . Database Lockouts . | . . . . . . . Manual 14 | . 7 . 6 . 1 . Terminals 19 | . 8 . 11 . . . Fabricators . | . . . . . . . Repair Stations . | . . . . . . . Recycling Units 1 | . 1 . . . . . Scanalyzers . | . . . . . . . Garrison Access . | . . . . . . . Terminal Hacks 9 | . 4 1 2 . 2 . Record 1 | . . . . . 1 . Robot Analysis 1 | . 1 . . . . . Prototype ID Bank 2 | . 2 . . . . . Open Door 1 | . . 1 . . . . Branch Access Points 1 | . 1 . . . . . Unreport Threat 1 | . . . 1 . . . Hauler Manifests 1 | . . . 1 . . . EX-Prototype ID Bank 1 | . . . . . 1 . Fabricator Hacks . | . . . . . . . Repair Station Hacks . | . . . . . . . Recycling Unit Hacks . | . . . . . . . Scanalyzer . | . . . . . . . Garrison Access Hacks . | . . . . . . . Unauthorized Hacks 8 | . 2 . 6 . . . Terminals 3 | . 1 . 2 . . . Botnet 2 | . 1 . 1 . . . Operators 1 | . . . 1 . . . Fabricators . | . . . . . . . Repair Stations . | . . . . . . . Recycling Units . | . . . . . . . Scanalyzers . | . . . . . . . Garrison Access . | . . . . . . . Data Cores Recovered . | . . . . . . . Used . | . . . . . . . Hacking Detections 7 | . 4 . 3 . . . Full Trace Events 1 | . 1 . . . . . Feedback Events . | . . . . . . . Feedback Blocked . | . . . . . . . Robot Schematics Acquired . | . . . . . . . Robots Built . | . . . . . . . Matter . | . . . . . . . Time . | . . . . . . . Total Robot Build Rating . | . . . . . . . Part Schematics Acquired . | . . . . . . . Parts Built . | . . . . . . . Matter . | . . . . . . . Time . | . . . . . . . Total Part Build Rating . | . . . . . . . Parts Repaired . | . . . . . . . Time . | . . . . . . . Parts Recycled . | . . . . . . . Recycled Matter . | . . . . . . . Retrieved Matter . | . . . . . . . Retrieved Components . | . . . . . . . Parts Scanalyzed . | . . . . . . . Part Schematics Acquired . | . . . . . . . Parts Damaged . | . . . . . . . Bothacking | -11 -10 -10 -9 -9 -9 -8 ------------ Run | Scr Mat Min Mat Min Exi Min Used RIF Installer . | . . . . . . . Robots Hacked . | . . . . . . . Non-combat . | . . . . . . . Combat . | . . . . . . . Robot Hacks Applied . | . . . . . . . Relay Couplers Released . | . . . . . . . Robots Rewired . | . . . . . . . Allies Hacked . | . . . . . . . Hacks Repelled . | . . . . . . . Allies | -11 -10 -10 -9 -9 -9 -8 -------- Run | Scr Mat Min Mat Min Exi Min Total Allies 2 | . . . . 2 . . Largest Group 2 | . . . . 2 . . Highest-Rated Group 45 | . . . . 45 . . Highest-Rated Ally 31 | . . . . 31 . . Total Orders . | . . . . . . . Ally Attacks 5 | . . . . 5 . . Total Damage 40 | . . . . 40 . . Kills . | . . . . . . . Allies Corrupted . | . . . . . . . Allies Melted . | . . . . . . . Intel | -11 -10 -10 -9 -9 -9 -8 ------- Run | Scr Mat Min Mat Min Exi Min Robot Analysis Total 1 | . 1 . . . . . Derelict Logs Recovered 2 | . . 2 . . . . Drone Launches . | . . . . . . . Drone Recoveries . | . . . . . . . Exploration | -11 -10 -10 -9 -9 -9 -8 ------------- Run | Scr Mat Min Mat Min Exi Min Turns Passed 5034 | 22 528 1158 1458 449 1364 55 Spaces Moved 2404 | 7 252 695 602 143 685 20 Core 1 | . . . . . 1 . Treads 1998 | . 248 559 495 143 553 . Legs 162 | 7 4 . . . 131 20 Wheels 243 | . . 136 107 . . . Hover . | . . . . . . . Flight . | . . . . . . . Fastest Speed 100 | 120 120 100 110 180 120 120 Average Speed 161 | 120 159 148 168 180 167 120 Slowest Speed 350 | 120 160 160 200 180 350 120 Overloaded Moves . | . . . . . . . Propulsion Burnouts . | . . . . . . . Robots Hopped . | . . . . . . . Cave-ins Triggered . | . . . . . . . Exploration Rate (%) 42 | 2 41 98 47 34 68 6 Regions Visited 6 Branch Regions 4 Pre-discovered Areas 3 | . . 2 . . 1 . Known Exits Taken 2 | . 1 . 1 . . . Unknown Exits Taken 4 | 1 . 1 . 1 1 . Scrap Searched 2 | . . 1 . 1 . . Spaces Dug . | . . . . . . . Terrain Destroyed 122 | . 35 . 63 . 24 . Melee . | . . . . . . . Projectile . | . . . . . . . AOE 122 | . 35 . 63 . 24 . Actions | -11 -10 -10 -9 -9 -9 -8 --------- Run | Scr Mat Min Mat Min Exi Min Total 3184 | 11 328 781 869 330 830 35 Wait 380 | . 34 42 94 180 23 7 Move 2398 | 6 251 694 601 142 684 20 Hop . | . . . . . . . Pick Up 67 | . 7 6 26 4 24 . Fast Attach 16 | . 2 1 6 . 7 . Attach 22 | . 2 5 9 . 6 . Detach 3 | . . . . . 3 . Swap 18 | . 1 . 12 1 4 . Drop 53 | . 4 5 16 . 28 . Fire 174 | 5 27 26 102 2 4 8 Melee 44 | . . . 1 . 43 . Ram . | . . . . . . . Kick . | . . . . . . . Crush 5 | . . 2 2 1 . . Escape Stasis . | . . . . . . . Rewire . | . . . . . . . Trap 4 | . . . . . 4 . Miscellaneous . | . . . . . . . Route ------- -11/Scrapyard -10/Materials (discovered 2 exits: *Mat / *Min) -10/Mines (discovered 2 exits: *Mat x2) -9/Materials (discovered 5 exits: Mat x2 / *Min / Sto x2) -9/Mines -9/Exiles -8/Mines History --------- Turn | Location | Event 15 | -11/Scrapyard | Discovered new exit (range 3) 23 | -11/Scrapyard | Entered Materials 316 | -10/Materials | Build established: Mutant 449 | -10/Materials | Discovered new exit (range 7) 475 | -10/Materials | Identified exit to Mines 551 | -10/Materials | Entered Mines 552 | -10/Mines | Learned location of Storage (-9) 603 | -10/Mines | Received a Rocket Launcher from a helpful Derelict 847 | -10/Mines | Learned location of Mines (-8) 895 | -10/Mines | Discovered new exit (range 6) 1027 | -10/Mines | Learned 8 Materials zone layouts 1546 | -10/Mines | Discovered new exit (range 9) 1658 | -10/Mines | Met a Derelict who couldn't figure out how to use a Trap Extractor 1709 | -10/Mines | Entered Materials 1709 | -9/Materials | Evolved 2 slots: Utility x2 1710 | -9/Materials | Identified exit to Storage 1710 | -9/Materials | Identified exit to Mines 1710 | -9/Materials | Identified exit to Materials 2440 | -9/Materials | Build established: Scavenger-Mutant 2942 | -9/Materials | Build established: Hauler-Mutant 3167 | -9/Materials | Entered Mines 3212 | -9/Mines | Assembled infested the area 3278 | -9/Mines | Found a hidden stash of uninstalled traps 3609 | -9/Mines | Deemed a non-threat by the Exiles lab entrance 3609 | -9/Mines | Discovered new exit (range 5) 3616 | -9/Mines | Entered Exiles 3660 | -9/Exiles | Met 8R-AWN 3712 | -9/Exiles | Met EX-HEX 3777 | -9/Exiles | Met EX-DEC 3811 | -9/Exiles | Learned location of Zion (-6) 3840 | -9/Exiles | Met EX-BIN 3865 | -9/Exiles | Aligned with FarCom system 3867 | -9/Exiles | Given EX-Vault access code 3912 | -9/Exiles | Opened EX-Vault 3957 | -9/Exiles | Warned to stay clear of 0b10 Research branches 4106 | -9/Exiles | Discovered new exit (range 15) 4435 | -9/Exiles | Build established: Mutant 4637 | -9/Exiles | Attacked by the Exiles 4708 | -9/Exiles | Core integrity fell below 50% 4714 | -9/Exiles | Found Prototype Ballistic Gun 4724 | -9/Exiles | Lost 4 parts (2n1u1w) 4761 | -9/Exiles | Core integrity fell below 20% 4782 | -9/Exiles | Destroyed 8R-AWN 4794 | -9/Exiles | Found Prototype Device 4794 | -9/Exiles | Identified AS-neutralizer No. 17b 4810 | -9/Exiles | Lost 4 parts (1p3n) 4980 | -9/Exiles | Entered Mines 5028 | -8/Mines | 99-TNT came to Exiles' defense 5035 | -8/Mines | Destroyed by 99-TNT via exploding Plasma Injector Last Messages --------------- 04862_ Acquired Hacking Suite. 04864_ Acquired Imp. Flight Unit. 04868_ Acquired Hacking Suite. 04876_ Acquired Med. Storage Unit. 04879_ Acquired Imp. Flight Unit. 04887_ Acquired Adv. Sensor Array. 04892_ Acquired Med. Storage Unit. 04897_ Acquired Adv. Sensor Array. 04935_ Acquired 60 matter. A strange signal echoes through the mines. LOCATION=UNKNOWN GOAL=ESCAPE 05010_ G-50 Soldier destroyed. 05019_ G-47 Trooper destroyed. 05019_ Switching to secondary target: G-47 Trooper. 05025_ G-47 Trooper destroyed. 05028_ 99-TNT: "I came as fast as I could... Wait, it was you!" 05033_ K-01 Serf collects debris. 05035_ Hvy. Assault Rifle destroyed. 05035_ Plasma Injector explodes. Map ----- +----------------------------------------------------+ | | | | | | | | | | | | | | | | | | | | | | | | | | | | | | | | | ??????????????????????????????????? | | ??????????????????????????????????? | | ??????????????????????????????????? | | ??????????????????????????????????? | | ??????????????????????????????????? | | ??????????????????????????????????? | | ??????????????????????????????????? | | ???????????????????#############??? | | ???????????????????# d[ ! #??? | | ???????????????????# @ #??? | | ???????????????????# #??? | | ???????????????????# ! #??? | | ???????????????????# == #??? | | ???????????????????# k""" = #??? | | ???????????????????#k """ #??? | | ???????????????????# """ #??? | | ????????????????# gg #??? | | ????????????????# ## #??? | | ????????????????#??# #??? | | ???????????????????#############??? | | ??????????????????????????????????? | | ??????????????????????????????????? | | ??????????????????????????????????? | | ??????????????????????????????????? | | ??????????????????????????????????? | | ??????????????????????????????????? | | ??????????????????????????????????? | | ??????????????????????????????????? | | ??????????????????????????????????? | | ??????????????????????????????????? | | ??????????????????????????????????? | | ??????????????????????????????????? | | ??????????????????????????????????? | | ??????????????????????????????????? | +----------------------------------------------------+ Best States ------------- Heat Dissipation 28 Energy Generation 14 Energy Capacity 280 Matter Stores 300 Matter Capacity 300 Sight Range 16 Terrain Scan Density 10 Armor Coverage 300 Resistance: TH 10 Evasion (%) 40 Targeting Accuracy 5 Recoil Reduction 2 Item Schematics ----------------- None Robot Schematics ------------------ None Fabricated ------------ Nothing Alien Tech Used ----------------- None Achievements -------------- None Challenges ------------ None Game ------ Seed GreatBombShifter Manual? 0 Play Time 00:31:37 Cumulative 631.0 hours Start 2020.01.22 @ 14:10:54 End 2020.01.22 @ 14:41:44 Sessions 1 Manual Loads 0 Difficulty Rogue Special Mode None Game No. 406 Rogue 406 Adventurer 0 Explorer 0 Win Type - Total 102 Types 68/6/8/10/5/1/4 Lore% 97 Gallery% 95 Achievement% 80 Wizard Run 0 Options --------- ASCII 0 Keyboard 0 Movement Numpad Keybinds 0 Fullscreen 2 Font 18/SmallcapsGlow Map View 76x50 Tactical HUD 1 Map Filters NONE Filters NONE Steam 1 RUN: e47ff96f-65b6-47b6-ba73-1aeaf01560dd